Cogmind - Beta 13 @@@ ROGUE MODE // 2024.04.18 @ 22:01:41 Player: Lunace Result: Destroyed by Enhanced Grunt with Neutron Cannon Performance ------------- Evolutions (3) 1500 Regions Visited (10) 2000 Robots Destroyed (74) 370 Value Destroyed (2222) 2222 Prototype IDs (37) 740 Alien Tech Used (0) 0 Bonus (693) 693 TOTAL SCORE: 7525 Bonus ------- High Alert Combat Kills 11 Follower Combat Kills 82 Aligned with FarCom 300 Met Data Miner 300 Cogmind --------- Core Integrity 0/700 Matter 280/300 Energy 99/100 System Corruption 0% Temperature Cool (0) Movement Core (50) Location -7/Data Miner Parts ------- > --- POWER (1) -------- (None) > --- PROPULSION (4) --- (None) > --- UTILITY (4) ------ (None) > --- WEAPON (4) ------- (None) > --- INVENTORY (5) ---- Light Nuclear Core Improved Cooling System Superbattery (1478) Improved Light Armor Plating Maul Peak State ------------ > --- POWER ------------ Neutrino Core > --- PROPULSION ------- Aluminum Leg Carbon-fiber Leg Improved Carbon-fiber Leg > --- UTILITY ---------- Cryofiber Web Coolant Injector Medium Storage Unit Superbattery > --- WEAPON ----------- Particle Gun Particle Gun Advanced Assault Cannon Gauss Cannon > --- INVENTORY -------- Light Nuclear Core Improved Deuterium Engine Aluminum Leg Improved Cooling System Coolant Injector Coolant Injector Microactuators Improved Light Armor Plating High-powered Tractor Beam Long-range Tractor Beam [Rating: 47] Favorites ----------- Power Light Deuterium Engine Engine Light Deuterium Engine Power Core Neutrino Core Propulsion Aluminum Leg Leg Aluminum Leg Utility Medium Storage Unit Device Cryofiber Web Storage Medium Storage Unit Protection Improved Light Armor Plating Weapon Gatling Laser Energy Gun Gatling Laser Energy Cannon Particle Cannon Ballistic Gun Assault Rifle Ballistic Cannon Improved Light Cannon Launcher Rocket Launcher Impact Weapon Maul Slashing Weapon Axe Build | -11 -10 -9 -9 -9 -8 -8 -7 -7 -7 -7 ------- Run | Yrd Mat Mat Min Exi Min Mat Fac Low Low Dat Slots Evolved 6 | . . 2 . . . 2 2 . . . Power . | . . . . . . . . . . . Propulsion 2 | . . 1 . . . 1 . . . . Utility 2 | . . . . . . 1 1 . . . Weapon 2 | . . 1 . . . . 1 . . . Parts Attached 77 | 6 11 5 5 . 9 19 3 13 6 . Power 11 | 1 2 . 1 . . 2 . 3 2 . Engine 7 | 1 2 . 1 . . 2 . 1 . . Core 4 | . . . . . . . . 2 2 . Reactor . | . . . . . . . . . . . Propulsion 28 | 2 3 4 1 . 4 7 1 5 1 . Treads . | . . . . . . . . . . . Leg 28 | 2 3 4 1 . 4 7 1 5 1 . Wheel . | . . . . . . . . . . . Hover . | . . . . . . . . . . . Flight . | . . . . . . . . . . . Utility 13 | 1 3 . 1 . 1 5 1 1 . . Device 7 | . 1 . 1 . . 4 . 1 . . Storage 4 | 1 2 . . . . 1 . . . . Processor . | . . . . . . . . . . . Hackware . | . . . . . . . . . . . Protection 2 | . . . . . 1 . 1 . . . Artifact . | . . . . . . . . . . . Weapon 25 | 2 3 1 2 . 4 5 1 4 3 . Energy Gun 12 | 1 2 1 . . . 5 1 2 . . Energy Cannon 1 | . . . . . . . . 1 . . Ballistic Gun 6 | 1 1 . . . 4 . . . . . Ballistic Cannon 3 | . . . 1 . . . . . 2 . Launcher 1 | . . . 1 . . . . . . . Special Weapon . | . . . . . . . . . . . Impact Weapon 1 | . . . . . . . . . 1 . Slashing Weapon 1 | . . . . . . . . 1 . . Piercing Weapon . | . . . . . . . . . . . Special Melee Weapon . | . . . . . . . . . . . Unidentified Prototypes 2 | . . . . . . 2 . . . . Parts Lost 24 | . 1 . . . 1 1 . 10 3 8 Power 3 | . 1 . . . . . . 1 1 . Propulsion 8 | . . . . . . . . 4 1 3 Utility 2 | . . . . . . . . . . 2 Weapon 11 | . . . . . 1 1 . 5 1 3 Highest Loss Streak 8 | . 1 . . . 1 1 . 4 3 8 To Critical Strikes . | . . . . . . . . . . . Average Slot Usage (%) 95 | . 94 100 100 100 99 98 100 88 91 88 Engine 7 | . 13 11 11 11 11 9 7 2 . . Core 1 | . . . . . . . . 3 6 6 Leg 31 | . 28 33 33 33 33 36 30 29 25 22 Device 10 | . 10 11 11 11 . 9 7 14 15 15 Storage 14 | . 14 11 11 11 11 17 15 15 15 15 Protection 1 | . . . . . 10 . 7 . . . Energy Gun 12 | . 8 11 1 . . 21 30 12 15 13 Ballistic Gun 6 | . 18 22 13 11 21 . . . . . Ballistic Cannon 3 | . . . 9 11 . . . . 6 14 Launcher 3 | . . . 8 11 11 4 . . . . Naked Turns . | . . . . . . . . . . . Heaviest Build 49 | 12 17 19 26 26 28 41 39 39 49 49 Greatest Support 53 | 20 20 30 30 30 35 52 52 52 53 43 Greatest Overweight (x) 2 | 2 1 . . . . . . 1 1 1 Average Overweight (x) . | . . . . . . . . . . . Largest Inventory Capacity 10 | 8 10 10 10 10 10 10 10 10 10 10 Average Capacity 9 | 7 9 10 10 10 10 10 10 10 10 9 Most Carried 10 | 3 9 10 10 10 10 10 8 9 10 10 Average Carried 8 | 1 5 7 9 10 9 9 7 7 9 9 Final Capacity 10 | 8 10 10 10 10 10 10 10 10 10 5 Final Carried 10 | 3 8 10 10 10 10 9 8 9 10 5 Class Distribution -------------------- 38% | Scavenger-Skirmisher 28% | Scavenger-Gunner 18% | Scavenger-Mutant 11% | Mutant Dominant Class ---------------- Mutant | -10/Materials Scavenger-Gunner | -9/Materials Scavenger-Gunner | -9/Mines Scavenger-Gunner | -9/Exiles Scavenger-Skirmisher | -8/Mines Scavenger-Skirmisher | -8/Materials Scavenger-Skirmisher | -7/Factory Scavenger-Mutant | -7/Lower Caves Scavenger-Mutant | -7/Lower Caves Scavenger-Gunner | -7/Data Miner Resources | -11 -10 -9 -9 -9 -8 -8 -7 -7 -7 -7 ----------- Run | Yrd Mat Mat Min Exi Min Mat Fac Low Low Dat Matter Collected 1821 | 269 355 125 260 . 191 269 40 252 60 . Remotely 660 | . 301 125 157 . 77 . . . . . Salvage Created 2231 | 61 355 125 74 . 125 591 87 676 137 . Parts 138 | 2 22 8 6 . 12 50 3 26 9 . Haulers Intercepted 1 | . 1 . . . . . . . . . Recyclers Shooed 5 | . 5 . . . . . . . . . Parts Field Recycled . | . . . . . . . . . . . Retrieved Matter . | . . . . . . . . . . . Parts Self-Destructed 30 | . . . . . . . . 22 8 . Prevented . | . . . . . . . . . . . Kills | -11 -10 -9 -9 -9 -8 -8 -7 -7 -7 -7 ------- Run | Yrd Mat Mat Min Exi Min Mat Fac Low Low Dat Combat Hostiles Destroyed 57 | . 6 2 5 . 6 15 2 16 5 . Melee 1 | . . . . . . . . 1 . . Guns 43 | . 6 2 1 . 1 12 2 14 5 . Cannons 3 | . . . 1 . 1 . . 1 . . AOE 10 | . . . 3 . 4 3 . . . . Classes Destroyed 11 | 1 4 . 1 . 1 2 . 1 1 . Worker 1 | . . . 1 . . . . . . . Builder 5 | . . . . . . 5 . . . . Hauler 1 | . 1 . . . . . . . . . Recycler 4 | 1 2 . . . 1 . . . . . Watcher 6 | . 1 1 . . . 4 . . . . Swarmer 20 | . 3 . 2 . 4 4 . 3 4 . Grunt 26 | . 3 2 3 . . 9 2 7 . . Duelist 4 | . . . . . . . . 4 . . Sentry 4 | . . . . . . 2 . 2 . . Hunter 2 | . . . . . 2 . . . . . Programmer 1 | . . . . . . . . . 1 . Best Kill Streak 12 | 1 5 2 4 . 5 12 2 6 4 . Combat Bots Only 6 | . 3 2 3 . 4 6 2 6 4 . Max Kills in Single Turn 3 | 1 2 1 2 . 2 3 1 2 1 . Gunslinging 1 | . 1 . . . . . . 1 . . Exploded 2 | . . . 2 . 2 2 . . . . Melee 1 | . . . . . . . . 1 . . Uniques/NPCs Destroyed . | . . . . . . . . . . . Combat | -11 -10 -9 -9 -9 -8 -8 -7 -7 -7 -7 -------- Run | Yrd Mat Mat Min Exi Min Mat Fac Low Low Dat Hostile Shots Fired 267 | . 25 4 18 . 26 29 8 105 27 25 Missed 82 | . 6 1 8 . 4 8 7 33 10 5 Damage Taken 3607 | . 202 35 216 . 289 293 18 1375 261 918 Core 892 | . 70 12 25 . 16 62 . 179 14 514 Absorbed by Shields . | . . . . . . . . . . . Core Remaining (%) 86 | 100 72 . . . 86 88 . . . . Volleys Fired 146 | 3 29 5 8 . 13 34 2 31 11 10 Largest 4 | 1 2 3 3 . 2 3 4 4 2 1 Hottest 320 | 20 60 80 92 . 59 240 320 320 130 48 Shots Fired 289 | 3 45 15 17 . 23 76 8 70 22 10 Gun 242 | 3 45 15 5 . 15 68 8 61 22 . Cannon 29 | . . . 5 . 5 . . 9 . 10 Launcher 18 | . . . 7 . 3 8 . . . . Special . | . . . . . . . . . . . Kinetic 95 | 3 42 10 10 . 20 . . . . 10 Thermal 171 | . 3 . . . . 68 8 70 22 . Explosive 18 | . . . 7 . 3 8 . . . . Electromagnetic 5 | . . 5 . . . . . . . . Robot Hit Streak 32 | 1 10 9 9 . 7 19 32 13 6 . Robot Miss Streak 3 | 1 2 2 1 . 1 3 1 3 2 . Penetration Max . | . . . . . . . . . . . Secondary Targets 7 | . 3 . . . . . . 3 1 . Max Gunslinging Chain 1 | . 1 . . . . . . 1 1 . Shots Hit Robots 212 | 2 35 8 12 . 18 56 6 60 15 . Core Hits 158 | 2 17 6 11 . 11 52 6 44 9 . Critical Kills . | . . . . . . . . . . . Critical Parts Destroyed . | . . . . . . . . . . . Critical Strikes 3 | . . 1 . . 1 . . . 1 . Burn 1 | . . . . . . . . . 1 . Blast 1 | . . . . . 1 . . . . . Corrupt 1 | . . 1 . . . . . . . . Melee Attacks 3 | . . . . . . . . 3 . . Impact . | . . . . . . . . . . . Slashing 3 | . . . . . . . . 3 . . Piercing . | . . . . . . . . . . . Sneak Attacks . | . . . . . . . . . . . Combat Hostiles . | . . . . . . . . . . . Follow-up Attacks . | . . . . . . . . . . . Damage Inflicted 4985 | 21 377 116 507 . 567 1580 168 1374 275 . Guns 3434 | 21 377 116 63 . 88 1113 168 1213 275 . Cannons 264 | . . . 64 . 75 . . 125 . . Explosions 1251 | . . . 380 . 404 467 . . . . Melee 36 | . . . . . . . . 36 . . Ramming . | . . . . . . . . . . . Kinetic 726 | 21 356 59 127 . 163 . . . . . Thermal 2915 | . 21 . . . . 1113 168 1338 275 . Explosive 1251 | . . . 380 . 404 467 . . . . Electromagnetic 57 | . . 57 . . . . . . . . Impact . | . . . . . . . . . . . Slashing 36 | . . . . . . . . 36 . . Piercing . | . . . . . . . . . . . Highest Corruption . | . . . . . . . . . . . Average Corruption . | . . . . . . . . . . . Corruption Purged . | . . . . . . . . . . . Corruption Blocked . | . . . . . . . . . . . Overload Shots . | . . . . . . . . . . . Overflow Damage 85 | . . . . . 65 20 . . . . Projectiles . | . . . . . . . . . . . Explosions 85 | . . . . . 65 20 . . . . Melee . | . . . . . . . . . . . Knockbacks 2 | . . . 2 . . . . . . . Impact . | . . . . . . . . . . . Kinetic 2 | . . . 2 . . . . . . . Secondary . | . . . . . . . . . . . Self-Inflicted Damage 135 | . . . 92 . 12 31 . . . . Shots 6 | . . . 3 . 1 2 . . . . Rammed . | . . . . . . . . . . . Targets Rammed . | . . . . . . . . . . . Kicked . | . . . . . . . . . . . Crushed . | . . . . . . . . . . . Highest Temperature 801 | . 14 39 97 . . 239 315 801 117 . Average Temperature 111 | . 8 17 59 . . 79 148 185 49 . Received Heat Transfer 684 | . 66 18 63 . . 144 9 384 . . Effects 8 | . . . . . . . . 8 . . Energy Bleed 1 | . . . . . . . . 1 . . Interference 1 | . . . . . . . . 1 . . Matter Decay 2 | . . . . . . . . 2 . . Damage (minor) 1 | . . . . . . . . 1 . . Damage (major) 2 | . . . . . . . . 2 . . Damage (core) 1 | . . . . . . . . 1 . . Siege Activations . | . . . . . . . . . . . Robots Corrupted . | . . . . . . . . . . . Combat Hostiles . | . . . . . . . . . . . Parts Fried . | . . . . . . . . . . . Impact Corruptions . | . . . . . . . . . . . Robots Melted . | . . . . . . . . . . . Combat Hostiles . | . . . . . . . . . . . Parts Melted 9 | . . . . . . 3 . 5 1 . Heat Transferred 6609 | . 50 . . . . 2525 375 2993 666 . Parts Sabotaged . | . . . . . . . . . . . Parts Stolen . | . . . . . . . . . . . Parts Stripped . | . . . . . . . . . . . Power Chain Reactions . | . . . . . . . . . . . Alert | -11 -10 -9 -9 -9 -8 -8 -7 -7 -7 -7 ------- Run | Yrd Mat Mat Min Exi Min Mat Fac Low Low Dat Peak Influence 447 | 5 292 100 238 . 183 447 221 . . . Initial 171 | . 3 38 39 . . 70 171 . . . Average 148 | 2 90 60 136 . 45 214 204 . . . Maximum Alert Level 2 | . 1 . 1 . . 2 1 . . . Low Security (%) 63 | 100 78 100 71 . 100 43 35 . . . Level 1 31 | . 21 . 28 . . 47 64 . . . Level 2 4 | . . . . . . 9 . . . . Level 3 . | . . . . . . . . . . . Level 4 . | . . . . . . . . . . . Level 5 . | . . . . . . . . . . . High Security . | . . . . . . . . . . . Max Security . | . . . . . . . . . . . Squads Dispatched 7 | . 3 . 1 . . 2 1 . . . Investigation 2 | . 2 . . . . . . . . . Extermination . | . . . . . . . . . . . Reinforcement 5 | . 1 . 1 . . 2 1 . . . Assault . | . . . . . . . . . . . Garrison . | . . . . . . . . . . . Intercept . | . . . . . . . . . . . Searches Triggered . | . . . . . . . . . . . Construction Impeded 2 | . . . 1 . . 1 . . . . Haulers Reinforced . | . . . . . . . . . . . Active Scanning Responses . | . . . . . . . . . . . Cargo Convoy Interrupts . | . . . . . . . . . . . Stealth | -11 -10 -9 -9 -9 -8 -8 -7 -7 -7 -7 --------- Run | Yrd Mat Mat Min Exi Min Mat Fac Low Low Dat Distress Signals 2 | . . . . . . 2 . . . . Communications Jammed . | . . . . . . . . . . . Distress Signals . | . . . . . . . . . . . Times Spotted 80 | . 10 4 6 . 6 23 3 19 5 4 Peak Tracking Total 7 | . 3 2 3 . 3 6 2 7 4 4 Tactical Retreats 5 | . 1 . 1 . . 2 . 1 . . Traps | -11 -10 -9 -9 -9 -8 -8 -7 -7 -7 -7 ------- Run | Yrd Mat Mat Min Exi Min Mat Fac Low Low Dat Traps Triggered 2 | . 2 . . . . . . . . . Indirectly . | . . . . . . . . . . . Trap Hack Attempts . | . . . . . . . . . . . Triggered . | . . . . . . . . . . . Disarmed . | . . . . . . . . . . . Reprogrammed . | . . . . . . . . . . . Reused . | . . . . . . . . . . . Traps Extracted . | . . . . . . . . . . . Installed . | . . . . . . . . . . . Triggered . | . . . . . . . . . . . Machines | -11 -10 -9 -9 -9 -8 -8 -7 -7 -7 -7 ---------- Run | Yrd Mat Mat Min Exi Min Mat Fac Low Low Dat Machines Disabled 2 | . . . 1 . . . . . . 1 Max in Single Turn 1 | . . . 1 . . . . . . 1 Machines Repaired . | . . . . . . . . . . . Machines Dismantled . | . . . . . . . . . . . Machines Sabotaged . | . . . . . . . . . . . Overloaded Fab Kills . | . . . . . . . . . . . Hacking | -11 -10 -9 -9 -9 -8 -8 -7 -7 -7 -7 --------- Run | Yrd Mat Mat Min Exi Min Mat Fac Low Low Dat Machines Accessed 17 | . 6 . 1 1 . 4 1 . . 4 Terminals 8 | . 4 . . . . 3 1 . . . Fabricators . | . . . . . . . . . . . Repair Stations 1 | . . . . . . 1 . . . . Recycling Units 2 | . 2 . . . . . . . . . Scanalyzers . | . . . . . . . . . . . Garrison Access . | . . . . . . . . . . . Total Hacks 61 | . 17 . 1 1 . 10 2 . . 30 Successful 47 | . 11 . 1 1 . 4 . . . 30 Failed 14 | . 6 . . . . 6 2 . . . Catastrophic 3 | . 1 . . . . 1 1 . . . Database Lockouts . | . . . . . . . . . . . Manual 18 | . 12 . . 1 . 5 . . . . Terminals 24 | . 13 . . . . 9 2 . . . Fabricators . | . . . . . . . . . . . Repair Stations 1 | . . . . . . 1 . . . . Recycling Units 4 | . 4 . . . . . . . . . Scanalyzers . | . . . . . . . . . . . Garrison Access . | . . . . . . . . . . . Terminal Hacks 41 | . 6 . 1 1 . 3 . . . 30 Record 11 | . . . . . . . . . . 11 Part Schematic 12 | . . . . . . . . . . 12 Robot Schematic 4 | . . . . . . . . . . 4 Prototype ID Bank 4 | . 1 . . . . . . . . 3 Open Door 1 | . . . 1 . . . . . . . Terminal Index 2 | . 1 . . . . 1 . . . . Scanalyzer Index 1 | . . . . . . 1 . . . . Alert Level 1 | . . . . . . 1 . . . . Locate Traps 1 | . 1 . . . . . . . . . Maintenance Status 1 | . 1 . . . . . . . . . Recall Investigation 1 | . 1 . . . . . . . . . Hauler Manifests 1 | . 1 . . . . . . . . . Derelict Proto ID Bank 1 | . . . . 1 . . . . . . Fabricator Hacks . | . . . . . . . . . . . Repair Station Hacks . | . . . . . . . . . . . Recycling Unit Hacks 2 | . 2 . . . . . . . . . Report Inventory 2 | . 2 . . . . . . . . . Scanalyzer . | . . . . . . . . . . . Garrison Access Hacks . | . . . . . . . . . . . Unauthorized Hacks 4 | . 3 . . . . 1 . . . . Terminals 2 | . 1 . . . . 1 . . . . Operators 2 | . 1 . . . . 1 . . . . Fabricators . | . . . . . . . . . . . Repair Stations . | . . . . . . . . . . . Recycling Units 2 | . 2 . . . . . . . . . Tunnel 2 | . 2 . . . . . . . . . Scanalyzers . | . . . . . . . . . . . Garrison Access . | . . . . . . . . . . . Data Cores Recovered . | . . . . . . . . . . . Used . | . . . . . . . . . . . Hacking Detections 9 | . 4 . . . . 4 1 . . . Full Trace Events . | . . . . . . . . . . . Feedback Events . | . . . . . . . . . . . Feedback Blocked . | . . . . . . . . . . . Robot Schematics Acquired 4 | . . . . . . . . . . 4 Robots Built . | . . . . . . . . . . . Authchips . | . . . . . . . . . . . Time . | . . . . . . . . . . . Total Robot Build Rating . | . . . . . . . . . . . Part Schematics Acquired 12 | . . . . . . . . . . 12 Parts Built . | . . . . . . . . . . . Authchips . | . . . . . . . . . . . Time . | . . . . . . . . . . . Total Part Build Rating . | . . . . . . . . . . . Parts Repaired . | . . . . . . . . . . . Time . | . . . . . . . . . . . Parts Recycled . | . . . . . . . . . . . Recycled Matter . | . . . . . . . . . . . Retrieved Matter . | . . . . . . . . . . . Retrieved Components . | . . . . . . . . . . . Parts Scanalyzed . | . . . . . . . . . . . Part Schematics Acquired . | . . . . . . . . . . . Parts Damaged . | . . . . . . . . . . . Bothacking | -11 -10 -9 -9 -9 -8 -8 -7 -7 -7 -7 ------------ Run | Yrd Mat Mat Min Exi Min Mat Fac Low Low Dat Used RIF Installer . | . . . . . . . . . . . Robots Hacked . | . . . . . . . . . . . Non-combat . | . . . . . . . . . . . Combat . | . . . . . . . . . . . Robot Hacks Applied . | . . . . . . . . . . . Relay Couplers Released . | . . . . . . . . . . . Fabnet Peak Effective % . | . . . . . . . . . . . Robots Rewired 2 | . . . . . . . . 2 . . Allies Hacked . | . . . . . . . . . . . Hacks Repelled . | . . . . . . . . . . . Allies | -11 -10 -9 -9 -9 -8 -8 -7 -7 -7 -7 -------- Run | Yrd Mat Mat Min Exi Min Mat Fac Low Low Dat Total Allies 2 | . . . . . . . . 2 . . Largest Group 2 | . . . . . . . . 2 . . Highest-Rated Group 62 | . . . . . . . . 62 . . Highest-Rated Ally 32 | . . . . . . . . 32 . . Total Orders 16 | . . . . . . 16 . . . . ROAM 16 | . . . . . . 16 . . . . Ally Attacks 9 | . . . . . . . . 9 . . Total Damage 293 | . . . . . . . . 293 . . Kills 2 | . . . . . . . . 2 . . Allies Corrupted . | . . . . . . . . . . . Allies Melted 1 | . . . . . . . . 1 . . Intel | -11 -10 -9 -9 -9 -8 -8 -7 -7 -7 -7 ------- Run | Yrd Mat Mat Min Exi Min Mat Fac Low Low Dat Robot Analysis Total . | . . . . . . . . . . . Derelict Logs Recovered 1 | . . . . . . . . 1 . . Drone Launches 16 | . . . . . . 16 . . . . Drone Recoveries . | . . . . . . . . . . . Exploration | -11 -10 -9 -9 -9 -8 -8 -7 -7 -7 -7 ------------- Run | Yrd Mat Mat Min Exi Min Mat Fac Low Low Dat Turns Passed 4184 | 69 402 103 416 280 392 1192 154 519 482 175 Spaces Moved 2545 | 41 222 63 307 233 264 642 96 298 297 82 Core 10 | 7 . . . . . . . . . 3 Treads . | . . . . . . . . . . . Legs 2535 | 34 222 63 307 233 264 642 96 298 297 79 Wheels . | . . . . . . . . . . . Hover . | . . . . . . . . . . . Flight . | . . . . . . . . . . . Fastest Speed 50 | 50 120 120 120 120 120 120 122 120 120 50 Average Speed 125 | 127 120 120 120 120 120 120 122 120 145 179 Slowest Speed 190 | 190 190 120 120 120 120 122 122 190 190 190 Overloaded Moves . | . . . . . . . . . . . Propulsion Burnouts . | . . . . . . . . . . . Robots Hopped . | . . . . . . . . . . . Cave-ins Triggered . | . . . . . . . . . . . Exploration Rate (%) 48 | 5 43 11 73 66 79 74 4 48 53 79 Regions Visited 10 Branch Regions 6 Pre-discovered Areas 3 | . 2 . . . . . . . . 1 Known Exits Taken . | . . . . . . . . . . . Unknown Exits Taken 10 | 1 1 1 1 1 1 1 1 1 1 . Scrap Searched 9 | . . . 1 . 2 . . 2 4 . Spaces Dug 14 | . . . . . . 10 . . . 4 Terrain Destroyed 176 | . . . 75 . 33 61 . . . 7 Melee . | . . . . . . . . . . . Projectile 7 | . . . . . . . . . . 7 AOE 169 | . . . 75 . 33 61 . . . . Terrain Rammed . | . . . . . . . . . . . Walls Destroyed . | . . . . . . . . . . . Machines Disabled . | . . . . . . . . . . . Actions | -11 -10 -9 -9 -9 -8 -8 -7 -7 -7 -7 --------- Run | Yrd Mat Mat Min Exi Min Mat Fac Low Low Dat Total 3256 | 52 312 79 343 234 316 991 126 377 324 102 Wait 380 | . 41 2 15 . 24 254 26 11 3 4 Move 2535 | 40 221 62 306 232 263 641 95 297 296 82 Hop . | . . . . . . . . . . . Pick Up 37 | 3 6 3 2 1 1 16 . 1 3 1 Fast Attach 33 | 6 4 . 1 . 3 7 . 7 5 . Attach 16 | . 3 2 . . 1 5 2 3 . . Detach 3 | . . . . . 1 1 . 1 . . Swap 28 | . 4 3 4 . 5 7 1 3 1 . Drop 55 | . 4 2 7 1 5 26 . . 5 5 Fire 146 | 3 29 5 8 . 13 34 2 31 11 10 Melee 3 | . . . . . . . . 3 . . Ram . | . . . . . . . . . . . Kick . | . . . . . . . . . . . Crush . | . . . . . . . . . . . Escape Stasis . | . . . . . . . . . . . Rewire 20 | . . . . . . . . 20 . . Trap . | . . . . . . . . . . . Miscellaneous . | . . . . . . . . . . . Route ------- -11/Scrapyard -10/Materials -9/Materials -9/Mines (discovered 2 exits: *Mat / *Exi) -9/Exiles -8/Mines -8/Materials -7/Factory -7/Lower Caves -7/Lower Caves -7/Data Miner (discovered 1 exit: [*Pro]) History --------- Turn | Location | Event 32 | -11/Scrapyard | Discovered new exit (range 15) 70 | -11/Scrapyard | Entered Materials 313 | -10/Materials | Build established: Mutant 446 | -10/Materials | Discovered new exit (range 15) 472 | -10/Materials | Entered another Materials area 472 | -9/Materials | Evolved 2 slots: Propulsion x1, Weapon x1 545 | -9/Materials | Discovered new exit (range 7) 575 | -9/Materials | Entered Mines 588 | -9/Mines | Met a Derelict bent on vengeance 619 | -9/Mines | Found the Drone Emporium 627 | -9/Mines | Found Prototype Device 655 | -9/Mines | Received a Rocket Launcher from a helpful Derelict 923 | -9/Mines | Discovered new exit (range 5) 972 | -9/Mines | Excavation squad dispatched 972 | -9/Mines | A large section of the Mines collapsed 986 | -9/Mines | Deemed a non-threat by the Exiles lab entrance 986 | -9/Mines | Discovered new exit (range 5) 991 | -9/Mines | Entered Exiles 993 | -9/Exiles | Build established: Scavenger-Gunner 1021 | -9/Exiles | Met 8R-AWN 1041 | -9/Exiles | Met EX-HEX 1075 | -9/Exiles | Met EX-BIN 1092 | -9/Exiles | Aligned with FarCom system 1093 | -9/Exiles | Given EX-Vault access code 1121 | -9/Exiles | Opened EX-Vault 1131 | -9/Exiles | Found Superbattery 1157 | -9/Exiles | Warned to stay clear of 0b10 Research branches 1191 | -9/Exiles | Met EX-DEC 1256 | -9/Exiles | Discovered new exit (range 14) 1271 | -9/Exiles | Left Exiles lab with Superbattery 1271 | -9/Exiles | Entered Mines 1566 | -8/Mines | Build established: Scavenger-Skirmisher 1637 | -8/Mines | Discovered new exit (range 13) 1663 | -8/Mines | Entered Materials 1663 | -8/Materials | Evolved 2 slots: Propulsion x1, Utility x1 1665 | -8/Materials | Identified Decoy Drone Bay 2808 | -8/Materials | Discovered new exit (range 5) 2855 | -8/Materials | Entered Factory 2855 | -7/Factory | Evolved 2 slots: Utility x1, Weapon x1 2999 | -7/Factory | Discovered new exit (range 10) 3009 | -7/Factory | Entered Lower Caves 3038 | -7/Lower Caves | Attracted the attention of an 0b10 outpost 3119 | -7/Lower Caves | Attracted the attention of an 0b10 checkpoint 3160 | -7/Lower Caves | Lost 4 parts (2n2w) 3221 | -7/Lower Caves | P-60 Hacker assimilated allied Fighter 4a 3241 | -7/Lower Caves | Learned 8 Factory zone layouts 3498 | -7/Lower Caves | Lost 3 parts (1n2w) 3520 | -7/Lower Caves | Discovered new exit (range 6) 3528 | -7/Lower Caves | Entered another Lower Caves area 3724 | -7/Lower Caves | Lost 3 parts (1p1n1w) 3758 | -7/Lower Caves | Build established: Scavenger-Mutant 3863 | -7/Lower Caves | Encountered a Warlord checkpoint 3989 | -7/Lower Caves | Discovered new exit (range 11) 4010 | -7/Lower Caves | Entered Data Miner 4010 | -7/Data Miner | Discovered new exit (range 6) 4047 | -7/Data Miner | Met Data Miner 4096 | -7/Data Miner | Data Conduit disabled 4109 | -7/Data Miner | Build established: Scavenger-Gunner 4110 | -7/Data Miner | Learned location of Section 7 (-2) 4110 | -7/Data Miner | Acquired the access code to Warlord's prototype stash 4181 | -7/Data Miner | Core integrity fell below 50% 4185 | -7/Data Miner | Core integrity fell below 20% 4185 | -7/Data Miner | Destroyed by Enhanced Grunt with Neutron Cannon Last Messages --------------- >>Prototype ID Bank Downloading prototype IDs... Imp. Lightning Gun Cld. Cesium-ion Thruster 04140_ Slug penetrates Wall. 04166_ Particle Gun destroyed. 04169_ Dropped Neutrino Core. 04175_ Carbon-fiber Leg destroyed. 04176_ Adv. Assault Cannon destroyed. 04176_ Particle Gun destroyed. 04178_ Aluminum Leg destroyed. 04180_ Cryofiber Web destroyed. 04180_ Imp. Carbon-fiber Leg destroyed. 04181_ Dropped Med. Storage Unit. 04181_ Dropped Gauss Cannon. 04182_ Dropped Superbattery. 04182_ Extracted 1 energy. 04183_ Dropped Microactuators. 04183_ Acquired Superbattery. 04185_ Coolant Injector destroyed. Map ----- +----------------------------------------------------+ | | | | | | | | | ?????????????????????????????????????????? | | ?????????????????????????????????????????? | | ?????????????????????????????????????????? | | ?????????????????????????????????????????? | | ?????????????????????????????????????####? | | ??????????###########??????????????### #? | | ?????????"""""""""""######????????## #? | | ????????""""" """"""""########## < ##? | | ???????"""""" ## | | ???????""" | | ??????"""" | | ??????""" g | | ???????""" | | ???????""" """"""""""""""""## | | ???????"""" """"###############? | | ????????""" """""###??????????????? | | ????????""""" "#####????????????????? | | ????????####"## "#????????????????????? | | ???????????#"?## "#????????????????????? | | ???????????#??## "#????????????????????? | | ???????????#"?# g "#????????????????????? | | ??????????##"## g@g"#????????????????????? | | ??????????#; ; != #????????????????????? | | ??????????##"### !!!#????????????????????? | | ???????????#"??# ]*"##???????????????????? | | ???????????#??## ""#???????????????????? | | ???????????#?## "#???????????????????? | | ??????????##"#"X ""#???????????????????? | | ?????????"""""" "####????????????????? | | ?????????#""""" X"""""????????????????? | | ?????????###"#"X "##"#????????????????? | | ???????????#"## * X""""#????????????????? | | ??????????????## ##"#????????????????? | | ???????????????#;;;###???????????????????? | | ???????????????## # #????????????????????? | | ???????????#"####;#####"?????????????????? | | ???????????#""""" """"""?????????????????? | | ???????????###### "#####?????????????????? | | ????????????????#""#?????????????????????? | | ????????????????#""#?????????????????????? | | ????????????????#""#?????????????????????? | | ????????????????#""#?????????????????????? | | ????????????????####?????????????????????? | | ?????????????????????????????????????????? | | ?????????????????????????????????????????? | | ?????????????????????????????????????????? | +----------------------------------------------------+ Best States ------------- Heat Dissipation 58 Coolant Potential 65 Energy Generation 19 Energy Capacity 1815 Matter Stores 300 Matter Capacity 300 Sight Range 16 Terrain Scan Density 10 Base Temperature (-) 100 Armor Coverage 150 Evasion (%) 55 Item Schematics ----------------- Combat Drone Bay | -7/Data Miner | Free Lgt. Regenerative Plating | -7/Data Miner | Free Biomechanical Wings | -7/Data Miner | Free Thermal Defense Suite | -7/Data Miner | Free Antimatter Cannon | -7/Data Miner | Free Arm. Medium Treads | -7/Data Miner | Free Adv. Hacking Suite | -7/Data Miner | Free Adv. Plasma Cannon | -7/Data Miner | Free Power Amplifier | -7/Data Miner | Free Imp. Remote Datajack | -7/Data Miner | Free Hvy. Siege Treads | -7/Data Miner | Free Adv. Trap Scanner | -7/Data Miner | Free Robot Schematics ------------------ A-15 Conveyor | -7/Data Miner | Free R-10 Processor | -7/Data Miner | Free M-22 Extractor | -7/Data Miner | Free B-48 Gladiator | -7/Data Miner | Free Fabricated ------------ Nothing Alien Tech Used ----------------- None Achievements -------------- None Challenges ------------ None Game ------ Seed InsulatedSniperSink Manual? 0 Play Time 00:46:46 Cumulative 90.3 hours Start 2024.04.18 @ 21:15:06 End 2024.04.18 @ 22:01:41 Sessions 1 Manual Loads 0 Difficulty Rogue Special Mode None Game No. 102 Rogue 97 Adventurer 5 Explorer 0 Win Type - Total 3 Types 2/0/0/1/0/0/0/0/0 Lore% 45 Gallery% 59 Achievement% 45 Wizard Run 0 Options --------- Layout 1 ASCII 0 Keyboard 0 Movement Mouse Keybinds 0 Fullscreen 1 Font 24/Terminus Map View 50x35 Zoom Use 0% Tactical HUD 1 Map Filters NONE Filters NONE Steam 1 RUN: 398b708e-51b8-4e6e-b711-a7a3561c0ed1